[Event "Early-Titled-Tuesday-Blitz-October-10-2023"]
[Site "Chess.com"]
[Date "2023.10.10"]
[Round "9"]
[White "MightyGMpretender"]
[Black "mr_gustavo"]
[Result "0-1"]
[WhiteElo "2742"]
[BlackElo "2654"]
[TimeControl "180+1"]
[EndTime "9:44:59 PDT"]
[Termination "mr_gustavo won by checkmate"]

1. e4 {[%clk 0:03:00.9]} 1... e6 {[%clk 0:02:58.2]} 2. Nc3 {[%clk 0:02:59.2]}
2... d5 {[%clk 0:02:58.6]} 3. Nf3 {[%clk 0:03:00.1]} 3... Nf6 {[%clk 0:02:54.5]}
4. e5 {[%clk 0:03:00.4]} 4... Nfd7 {[%clk 0:02:54.6]} 5. d4 {[%clk 0:03:00.9]}
5... c5 {[%clk 0:02:55.1]} 6. dxc5 {[%clk 0:03:01.8]} 6... Bxc5 {[%clk
0:02:54.1]} 7. Bd3 {[%clk 0:03:00.1]} 7... Nc6 {[%clk 0:02:49.3]} 8. Qe2 {[%clk
0:03:00]} 8... h6 {[%clk 0:02:48.7]} 9. h4 {[%clk 0:02:59.6]} 9... a6 {[%clk
0:02:46.9]} 10. a3 {[%clk 0:02:51.1]} 10... b5 {[%clk 0:02:42.2]} 11. Rh3 {[%clk
0:02:50.2]} 11... Qb6 {[%clk 0:02:41]} 12. Rg3 {[%clk 0:02:44.8]} 12... Nd4
{[%clk 0:02:30.3]} 13. Nxd4 {[%clk 0:02:43.2]} 13... Bxd4 {[%clk 0:02:31.2]} 14.
Bf4 {[%clk 0:02:43.5]} 14... g5 {[%clk 0:02:29.2]} 15. Bd2 {[%clk 0:02:26.4]}
15... Bxe5 {[%clk 0:02:25.9]} 16. Rh3 {[%clk 0:02:23.2]} 16... gxh4 {[%clk
0:02:12.2]} 17. Rxh4 {[%clk 0:02:23.1]} 17... Bb7 {[%clk 0:02:10.1]} 18. Rh5
{[%clk 0:02:22.5]} 18... Qc7 {[%clk 0:01:57.1]} 19. O-O-O {[%clk 0:02:13.4]}
19... O-O-O {[%clk 0:01:57]} 20. Rdh1 {[%clk 0:02:06.5]} 20... Bf4 {[%clk
0:01:49.6]} 21. Bxf4 {[%clk 0:01:53.2]} 21... Qxf4+ {[%clk 0:01:50.5]} 22. Qd2
{[%clk 0:01:53.8]} 22... Qxd2+ {[%clk 0:01:50.6]} 23. Kxd2 {[%clk 0:01:54.1]}
23... d4 {[%clk 0:01:51.5]} 24. Ne4 {[%clk 0:01:46.5]} 24... Bxe4 {[%clk
0:01:47.4]} 25. Bxe4 {[%clk 0:01:45.4]} 25... Nf6 {[%clk 0:01:48.3]} 26. R5h4
{[%clk 0:01:44.1]} 26... h5 {[%clk 0:01:40.4]} 27. Bf3 {[%clk 0:01:43.8]} 27...
Rhg8 {[%clk 0:01:08.4]} 28. g3 {[%clk 0:01:42.4]} 28... Rg5 {[%clk 0:01:08.8]}
29. Bxh5 {[%clk 0:01:40.7]} 29... Rf5 {[%clk 0:01:09.2]} 30. f4 {[%clk
0:01:25.9]} 30... Ne4+ {[%clk 0:01:06.3]} 31. Kd3 {[%clk 0:01:20.8]} 31... Nf2+
{[%clk 0:01:02.3]} 32. Ke2 {[%clk 0:01:16.1]} 32... Nxh1 {[%clk 0:01:03.2]} 33.
Rxh1 {[%clk 0:01:16.4]} 33... Rh8 {[%clk 0:01:02.9]} 34. g4 {[%clk 0:01:02.7]}
34... Rxf4 {[%clk 0:01:02.5]} 35. Rg1 {[%clk 0:00:57.8]} 35... e5 {[%clk
0:01:01.8]} 36. Kd3 {[%clk 0:00:56]} 36... Kd7 {[%clk 0:00:59.1]} 37. a4 {[%clk
0:00:54.3]} 37... Kd6 {[%clk 0:00:59.1]} 38. axb5 {[%clk 0:00:54.5]} 38... axb5
{[%clk 0:00:59.7]} 39. Ra1 {[%clk 0:00:55.2]} 39... Kc5 {[%clk 0:00:54.5]} 40.
Ra7 {[%clk 0:00:55.1]} 40... f5 {[%clk 0:00:54.3]} 41. b4+ {[%clk 0:00:51.3]}
41... Kxb4 {[%clk 0:00:53.1]} 42. Re7 {[%clk 0:00:51.5]} 42... Rf3+ {[%clk
0:00:49.3]} 43. Kd2 {[%clk 0:00:51]} 43... Re3 {[%clk 0:00:48.4]} 44. c3+ {[%clk
0:00:42.2]} 44... Rxc3 {[%clk 0:00:44.4]} 45. Rxe5 {[%clk 0:00:42.1]} 45... fxg4
{[%clk 0:00:44.3]} 46. Rg5 {[%clk 0:00:41.7]} 46... g3 {[%clk 0:00:43.3]} 47.
Be2 {[%clk 0:00:42.1]} 47... Rh2 {[%clk 0:00:40]} 48. Rxb5+ {[%clk 0:00:41.7]}
48... Ka4 {[%clk 0:00:40.4]} 49. Rd5 {[%clk 0:00:39.9]} 49... g2 {[%clk
0:00:30.5]} 50. Rxd4+ {[%clk 0:00:40.1]} 50... Kb3 {[%clk 0:00:30.4]} 51. Bd1+
{[%clk 0:00:31.3]} 51... Kb2 {[%clk 0:00:29.8]} 52. Rb4+ {[%clk 0:00:31.4]}
52... Ka2 {[%clk 0:00:30.4]} 53. Kxc3 {[%clk 0:00:16]} 53... g1=Q {[%clk
0:00:28.9]} 54. Bb3+ {[%clk 0:00:10]} 54... Ka1 {[%clk 0:00:24.3]} 55. Ra4+
{[%clk 0:00:09.5]} 55... Kb1 {[%clk 0:00:24.8]} 56. Bc4 {[%clk 0:00:09.8]} 56...
Qe1+ {[%clk 0:00:23.5]} 57. Kd4 {[%clk 0:00:08.1]} 57... Rh4+ {[%clk 0:00:23.6]}
58. Kc5 {[%clk 0:00:08.3]} 58... Qe3+ {[%clk 0:00:23.5]} 59. Kb4 {[%clk
0:00:08.5]} 59... Qd2+ {[%clk 0:00:22.2]} 60. Kb5 {[%clk 0:00:08.4]} 60... Rh5+
{[%clk 0:00:21.7]} 61. Kc6 {[%clk 0:00:05.7]} 61... Qg2+ {[%clk 0:00:21.1]} 62.
Kb6 {[%clk 0:00:05]} 62... Qf2+ {[%clk 0:00:21]} 63. Ka6 {[%clk 0:00:04.9]}
63... Rh6+ {[%clk 0:00:17.3]} 64. Kb7 {[%clk 0:00:03.8]} 64... Qb6+ {[%clk
0:00:17.8]} 65. Ka8 {[%clk 0:00:03.9]} 65... Rh8+ {[%clk 0:00:16.4]} 66. Bg8
{[%clk 0:00:01.5]} 66... Rxg8# {[%clk 0:00:17.3]} 0-1

[Event "Early-Titled-Tuesday-Blitz-October-10-2023"]
[Site "Chess.com"]
[Date "2023.10.10"]
[Round "9"]
[White "atalz0"]
[Black "Alphafischer2019"]
[Result "0-1"]
[WhiteElo "2485"]
[BlackElo "2584"]
[TimeControl "180+1"]
[EndTime "9:44:59 PDT"]
[Termination "Alphafischer2019 won on time"]

1. d4 {[%clk 0:03:00.9]} 1... Nf6 {[%clk 0:02:59.6]} 2. c4 {[%clk 0:03:00.7]}
2... b6 {[%clk 0:02:58.9]} 3. Nc3 {[%clk 0:02:59.7]} 3... Bb7 {[%clk 0:02:59.2]}
4. f3 {[%clk 0:02:59.7]} 4... d5 {[%clk 0:02:58.1]} 5. cxd5 {[%clk 0:02:55.8]}
5... Nxd5 {[%clk 0:02:58.4]} 6. e4 {[%clk 0:02:56.7]} 6... Nxc3 {[%clk
0:02:58.2]} 7. bxc3 {[%clk 0:02:57.6]} 7... e6 {[%clk 0:02:59]} 8. Be3 {[%clk
0:02:49.1]} 8... Be7 {[%clk 0:02:57.9]} 9. Bc4 {[%clk 0:02:44.1]} 9... O-O
{[%clk 0:02:51.7]} 10. Ne2 {[%clk 0:02:43.5]} 10... c5 {[%clk 0:02:52.2]} 11.
O-O {[%clk 0:02:42.3]} 11... cxd4 {[%clk 0:02:52.3]} 12. cxd4 {[%clk 0:02:38.5]}
12... Nc6 {[%clk 0:02:52.8]} 13. Qd2 {[%clk 0:02:26.5]} 13... Na5 {[%clk
0:02:52.8]} 14. Bd3 {[%clk 0:02:24.5]} 14... Rc8 {[%clk 0:02:53.4]} 15. Rfc1
{[%clk 0:02:23.4]} 15... Qd7 {[%clk 0:02:54.1]} 16. Qb2 {[%clk 0:02:05.9]} 16...
h6 {[%clk 0:02:39.1]} 17. Bb5 {[%clk 0:02:01.5]} 17... Bc6 {[%clk 0:02:34.1]}
18. Ba6 {[%clk 0:02:01.4]} 18... Bb7 {[%clk 0:02:29.9]} 19. Bb5 {[%clk
0:02:01.4]} 19... Qd6 {[%clk 0:02:24.6]} 20. a3 {[%clk 0:01:49]} 20... Rxc1+
{[%clk 0:02:18.9]} 21. Nxc1 {[%clk 0:01:44.9]} 21... Rc8 {[%clk 0:02:16.9]} 22.
Qe2 {[%clk 0:01:33]} 22... Bg5 {[%clk 0:02:06.8]} 23. a4 {[%clk 0:00:59.9]}
23... Rc3 {[%clk 0:02:00.3]} 24. Bxg5 {[%clk 0:00:55.8]} 24... Qxd4+ {[%clk
0:01:55.3]} 25. Qf2 {[%clk 0:00:55.4]} 25... Qxf2+ {[%clk 0:01:44.8]} 26. Kxf2
{[%clk 0:00:56.3]} 26... hxg5 {[%clk 0:01:45.3]} 27. Ne2 {[%clk 0:00:56.1]}
27... Rc7 {[%clk 0:01:27.8]} 28. Rd1 {[%clk 0:00:56.2]} 28... a6 {[%clk
0:01:27]} 29. Rd8+ {[%clk 0:00:56]} 29... Kh7 {[%clk 0:01:26.7]} 30. Bd3 {[%clk
0:00:56.3]} 30... Nc6 {[%clk 0:01:21.2]} 31. Rd6 {[%clk 0:00:49.2]} 31... Ne5
{[%clk 0:01:16.5]} 32. Ke3 {[%clk 0:00:48.9]} 32... Rd7 {[%clk 0:01:02.6]} 33.
Rxd7 {[%clk 0:00:45]} 33... Nxd7 {[%clk 0:01:03.5]} 34. Kd4 {[%clk 0:00:40.3]}
34... Nc5 {[%clk 0:01:03.4]} 35. Bc2 {[%clk 0:00:40.4]} 35... Kg8 {[%clk
0:01:00.4]} 36. a5 {[%clk 0:00:33.1]} 36... Nd7 {[%clk 0:00:51.9]} 37. axb6
{[%clk 0:00:33.1]} 37... Nxb6 {[%clk 0:00:52.8]} 38. Kc5 {[%clk 0:00:33.7]}
38... Nc8 {[%clk 0:00:43]} 39. Ba4 {[%clk 0:00:20.7]} 39... Kf8 {[%clk
0:00:35.9]} 40. Bc6 {[%clk 0:00:13.2]} 40... Bxc6 {[%clk 0:00:35]} 41. Kxc6
{[%clk 0:00:14.1]} 41... Ke7 {[%clk 0:00:30.9]} 42. Kb7 {[%clk 0:00:13.3]} 42...
Nd6+ {[%clk 0:00:31.6]} 43. Kxa6 {[%clk 0:00:13.9]} 43... Nc4 {[%clk 0:00:24.8]}
44. Kb5 {[%clk 0:00:14.1]} 44... Ne3 {[%clk 0:00:25.4]} 45. g3 {[%clk
0:00:14.5]} 45... Nf1 {[%clk 0:00:19.9]} 46. h3 {[%clk 0:00:13.2]} 46... Nd2
{[%clk 0:00:19.2]} 47. Ng1 {[%clk 0:00:11.7]} 47... Kd6 {[%clk 0:00:18.5]} 48.
Kb4 {[%clk 0:00:11.6]} 48... Ke5 {[%clk 0:00:17.2]} 49. Kc3 {[%clk 0:00:12]}
49... Nf1 {[%clk 0:00:17.7]} 50. Ne2 {[%clk 0:00:11.6]} 50... Nh2 {[%clk
0:00:16.4]} 51. Ng1 {[%clk 0:00:10.8]} 51... f5 {[%clk 0:00:07.3]} 52. exf5
{[%clk 0:00:11.1]} 52... exf5 {[%clk 0:00:07.8]} 53. Kd3 {[%clk 0:00:10.9]}
53... Nf1 {[%clk 0:00:07.6]} 54. Ne2 {[%clk 0:00:10.1]} 54... f4 {[%clk
0:00:07.3]} 55. gxf4+ {[%clk 0:00:08.9]} 55... gxf4 {[%clk 0:00:08.2]} 56. Ng1
{[%clk 0:00:06.6]} 56... Ng3 {[%clk 0:00:08]} 57. Ne2 {[%clk 0:00:02.5]} 57...
Nxe2 {[%clk 0:00:07.9]} 58. Kxe2 {[%clk 0:00:03.4]} 58... Kd4 {[%clk 0:00:08.5]}
59. Kd2 {[%clk 0:00:03.6]} 59... g5 {[%clk 0:00:08.4]} 60. Ke2 {[%clk
0:00:02.4]} 60... Kc3 {[%clk 0:00:08.7]} 61. Kf2 {[%clk 0:00:01.9]} 61... Kd3
{[%clk 0:00:09.3]} 0-1

[Event "Early-Titled-Tuesday-Blitz-October-10-2023"]
[Site "Chess.com"]
[Date "2023.10.10"]
[Round "9"]
[White "adotand"]
[Black "mishanick"]
[Result "1-0"]
[WhiteElo "2896"]
[BlackElo "3078"]
[TimeControl "180+1"]
[EndTime "9:45:03 PDT"]
[Termination "adotand won on time"]

1. d4 {[%clk 0:03:00.9]} 1... Nf6 {[%clk 0:03:00.1]} 2. c4 {[%clk 0:03:01.4]}
2... e6 {[%clk 0:03:00.6]} 3. Nc3 {[%clk 0:03:02.1]} 3... d5 {[%clk 0:03:00.3]}
4. cxd5 {[%clk 0:02:59.5]} 4... exd5 {[%clk 0:03:01.2]} 5. Bg5 {[%clk
0:03:00.1]} 5... c6 {[%clk 0:03:01.4]} 6. e3 {[%clk 0:03:00.1]} 6... Be7 {[%clk
0:03:00.6]} 7. Bd3 {[%clk 0:03:00.2]} 7... Nbd7 {[%clk 0:03:00.8]} 8. h3 {[%clk
0:03:00.6]} 8... Nf8 {[%clk 0:02:59.6]} 9. Bf4 {[%clk 0:02:59.9]} 9... Ne6
{[%clk 0:02:57.5]} 10. Be5 {[%clk 0:02:58.3]} 10... O-O {[%clk 0:02:52.5]} 11.
Nf3 {[%clk 0:02:58.3]} 11... Bd6 {[%clk 0:02:49.7]} 12. O-O {[%clk 0:02:56]}
12... Bxe5 {[%clk 0:02:49.6]} 13. Nxe5 {[%clk 0:02:55.3]} 13... Nd7 {[%clk
0:02:50.1]} 14. Nf3 {[%clk 0:02:53.3]} 14... Qe7 {[%clk 0:02:48.2]} 15. Qc2
{[%clk 0:02:52.2]} 15... g6 {[%clk 0:02:48.3]} 16. Rab1 {[%clk 0:02:52.5]} 16...
a5 {[%clk 0:02:47.9]} 17. a3 {[%clk 0:02:52.7]} 17... Ng5 {[%clk 0:02:34.6]} 18.
Nd2 {[%clk 0:02:44.8]} 18... Nf6 {[%clk 0:02:34.6]} 19. Rbe1 {[%clk 0:02:40.4]}
19... Nxh3+ {[%clk 0:02:33]} 20. gxh3 {[%clk 0:02:37]} 20... Bxh3 {[%clk
0:02:33.9]} 21. Qd1 {[%clk 0:02:30.4]} 21... Rae8 {[%clk 0:02:31.6]} 22. Qf3
{[%clk 0:02:29.1]} 22... Bxf1 {[%clk 0:02:31.7]} 23. Rxf1 {[%clk 0:02:18]} 23...
Nh5 {[%clk 0:02:32.3]} 24. Qg2 {[%clk 0:02:06.4]} 24... Kh8 {[%clk 0:02:22.6]}
25. Nf3 {[%clk 0:02:05.3]} 25... Qd6 {[%clk 0:02:22.4]} 26. Re1 {[%clk
0:02:02.7]} 26... Re6 {[%clk 0:02:12.8]} 27. Ne5 {[%clk 0:01:56.5]} 27... f6
{[%clk 0:01:56.2]} 28. Nf3 {[%clk 0:01:56.3]} 28... Rfe8 {[%clk 0:01:51.7]} 29.
Kf1 {[%clk 0:01:56.2]} 29... R8e7 {[%clk 0:01:46.2]} 30. Ne2 {[%clk 0:01:41.9]}
30... b5 {[%clk 0:01:40.8]} 31. Nh4 {[%clk 0:01:34.2]} 31... Rg7 {[%clk
0:01:29]} 32. Nf3 {[%clk 0:01:11]} 32... a4 {[%clk 0:01:25.4]} 33. Qh2 {[%clk
0:01:01.1]} 33... Qxh2 {[%clk 0:01:21.6]} 34. Nxh2 {[%clk 0:01:02]} 34... Rge7
{[%clk 0:01:21.1]} 35. Rc1 {[%clk 0:01:00.1]} 35... Rb7 {[%clk 0:01:18.8]} 36.
Nc3 {[%clk 0:00:56.4]} 36... f5 {[%clk 0:00:46.2]} 37. Nf3 {[%clk 0:00:56.2]}
37... Nf6 {[%clk 0:00:46.9]} 38. Na2 {[%clk 0:00:52.3]} 38... Ng4 {[%clk
0:00:46]} 39. Nb4 {[%clk 0:00:49.9]} 39... Rb6 {[%clk 0:00:46.7]} 40. Kg2 {[%clk
0:00:46.6]} 40... Kg7 {[%clk 0:00:45.1]} 41. Ng5 {[%clk 0:00:39.1]} 41... Rd6
{[%clk 0:00:44.8]} 42. Be2 {[%clk 0:00:36.2]} 42... Nf6 {[%clk 0:00:42.5]} 43.
Nf3 {[%clk 0:00:36.7]} 43... Nd7 {[%clk 0:00:40.6]} 44. Kg3 {[%clk 0:00:34.7]}
44... Kf6 {[%clk 0:00:40.2]} 45. Rh1 {[%clk 0:00:33.8]} 45... h5 {[%clk
0:00:40.2]} 46. Rc1 {[%clk 0:00:33]} 46... Re6 {[%clk 0:00:39.6]} 47. Ne1 {[%clk
0:00:30.5]} 47... g5 {[%clk 0:00:21]} 48. Bxh5 {[%clk 0:00:29.7]} 48... g4
{[%clk 0:00:21.6]} 49. Ned3 {[%clk 0:00:26.9]} 49... Kg5 {[%clk 0:00:21.8]} 50.
Nf4 {[%clk 0:00:26.9]} 50... Rh6 {[%clk 0:00:22.1]} 51. Be8 {[%clk 0:00:25.5]}
51... Nb8 {[%clk 0:00:17.5]} 52. Kg2 {[%clk 0:00:20.4]} 52... Rd6 {[%clk
0:00:05.9]} 53. Rh1 {[%clk 0:00:19.6]} 53... Rh6 {[%clk 0:00:06.4]} 54. Rxh6
{[%clk 0:00:16.2]} 54... Kxh6 {[%clk 0:00:07.3]} 55. Ne6 {[%clk 0:00:16.7]}
55... Rb7 {[%clk 0:00:05]} 56. Nxc6 {[%clk 0:00:15.2]} 56... Na6 {[%clk
0:00:02.8]} 57. Nc5 {[%clk 0:00:12.7]} 57... Rb6 {[%clk 0:00:02.3]} 58. Nb4
{[%clk 0:00:11.8]} 58... Nxb4 {[%clk 0:00:02]} 59. axb4 {[%clk 0:00:12.7]} 59...
Kg5 {[%clk 0:00:01.7]} 60. Kg3 {[%clk 0:00:12.8]} 1-0

[Event "Early-Titled-Tuesday-Blitz-October-10-2023"]
[Site "Chess.com"]
[Date "2023.10.10"]
[Round "9"]
[White "lamomiajunior"]
[Black "Rozhkov_V"]
[Result "1-0"]
[WhiteElo "2690"]
[BlackElo "2439"]
[TimeControl "180+1"]
[EndTime "9:45:04 PDT"]
[Termination "lamomiajunior won by resignation"]

1. d4 {[%clk 0:03:00.9]} 1... d5 {[%clk 0:02:58.9]} 2. c4 {[%clk 0:03:01.2]}
2... dxc4 {[%clk 0:02:59.8]} 3. Nf3 {[%clk 0:03:00.2]} 3... Nf6 {[%clk
0:02:56.2]} 4. e3 {[%clk 0:03:00.7]} 4... Bg4 {[%clk 0:02:56.6]} 5. Bxc4 {[%clk
0:03:00.6]} 5... e6 {[%clk 0:02:57.3]} 6. Nc3 {[%clk 0:02:58.6]} 6... Bd6 {[%clk
0:02:54.4]} 7. h3 {[%clk 0:02:58.4]} 7... Bh5 {[%clk 0:02:54.4]} 8. g4 {[%clk
0:02:52.4]} 8... Bg6 {[%clk 0:02:54.1]} 9. Bf1 {[%clk 0:02:46.9]} 9... Nc6
{[%clk 0:02:43.4]} 10. Bg2 {[%clk 0:02:47.2]} 10... O-O {[%clk 0:02:43.8]} 11.
O-O {[%clk 0:02:44.6]} 11... Qe7 {[%clk 0:02:39.2]} 12. Nh4 {[%clk 0:02:27.9]}
12... e5 {[%clk 0:02:29.9]} 13. Nxg6 {[%clk 0:02:24.3]} 13... hxg6 {[%clk
0:02:30.8]} 14. d5 {[%clk 0:02:22.3]} 14... Nb8 {[%clk 0:02:29.4]} 15. e4 {[%clk
0:02:19.2]} 15... Nbd7 {[%clk 0:02:28.5]} 16. Be3 {[%clk 0:02:19]} 16... Nh7
{[%clk 0:02:22.5]} 17. Qd2 {[%clk 0:02:17.8]} 17... f5 {[%clk 0:02:19.4]} 18.
exf5 {[%clk 0:02:16.3]} 18... gxf5 {[%clk 0:02:20.3]} 19. gxf5 {[%clk
0:02:14.5]} 19... Rxf5 {[%clk 0:02:20.6]} 20. Ne4 {[%clk 0:02:11.1]} 20... Raf8
{[%clk 0:02:17.6]} 21. Ng3 {[%clk 0:02:11.3]} 21... R5f7 {[%clk 0:02:12.1]} 22.
Be4 {[%clk 0:02:10]} 22... Ndf6 {[%clk 0:02:07.9]} 23. Bg6 {[%clk 0:02:09]}
23... Qd7 {[%clk 0:01:56.3]} 24. Bxf7+ {[%clk 0:02:04.3]} 24... Rxf7 {[%clk
0:01:57.2]} 25. Kg2 {[%clk 0:02:01.2]} 25... Nf8 {[%clk 0:01:47.3]} 26. Qd3
{[%clk 0:01:42.2]} 26... e4 {[%clk 0:01:15]} 27. Nxe4 {[%clk 0:01:39.6]} 27...
Qf5 {[%clk 0:01:14]} 28. Nxf6+ {[%clk 0:01:39.1]} 28... Qxf6 {[%clk 0:01:14.9]}
29. f4 {[%clk 0:01:28.4]} 29... Ng6 {[%clk 0:01:13.1]} 30. Rae1 {[%clk
0:01:18.2]} 30... Bxf4 {[%clk 0:00:57.7]} 31. Kh1 {[%clk 0:01:06.9]} 31... Qh4
{[%clk 0:00:43.3]} 32. Bxf4 {[%clk 0:01:06.2]} 32... Rxf4 {[%clk 0:00:15.1]} 33.
Re8+ {[%clk 0:01:01.4]} 33... Nf8 {[%clk 0:00:05.5]} 34. Rxf4 {[%clk 0:00:39.6]}
34... Qxf4 {[%clk 0:00:06.4]} 35. Re1 {[%clk 0:00:34.4]} 35... Qh4 {[%clk
0:00:05.3]} 36. Rf1 {[%clk 0:00:33.4]} 36... Qg5 {[%clk 0:00:01.9]} 37. Qf5
{[%clk 0:00:29]} 37... Qe7 {[%clk 0:00:02.5]} 38. Rf2 {[%clk 0:00:26.7]} 38...
Nd7 {[%clk 0:00:02.7]} 39. Qe6+ {[%clk 0:00:26.6]} 39... Qxe6 {[%clk 0:00:02.5]}
40. dxe6 {[%clk 0:00:27.5]} 40... Nf6 {[%clk 0:00:03.2]} 41. Rd2 {[%clk
0:00:25.8]} 41... Kf8 {[%clk 0:00:02.9]} 42. Rd8+ {[%clk 0:00:25.6]} 42... Ke7
{[%clk 0:00:03.5]} 43. Rb8 {[%clk 0:00:26.5]} 43... b6 {[%clk 0:00:02.7]} 44.
Rb7 {[%clk 0:00:27]} 44... Kxe6 {[%clk 0:00:03.4]} 45. Rxa7 {[%clk 0:00:27.5]}
45... Nd5 {[%clk 0:00:03]} 46. Ra8 {[%clk 0:00:27]} 46... Kd6 {[%clk 0:00:02.1]}
47. Rg8 {[%clk 0:00:26.8]} 47... Kc5 {[%clk 0:00:02.3]} 48. Rxg7 {[%clk
0:00:27.1]} 48... Kc4 {[%clk 0:00:02.8]} 49. Rg3 {[%clk 0:00:26.2]} 49... Nb4
{[%clk 0:00:02]} 50. Rg4+ {[%clk 0:00:24.9]} 50... Kc5 {[%clk 0:00:01.1]} 51. a3
{[%clk 0:00:23.2]} 51... Nd3 {[%clk 0:00:01.8]} 52. Rg2 {[%clk 0:00:22.2]} 52...
Kc4 {[%clk 0:00:01.7]} 53. h4 {[%clk 0:00:22.2]} 53... Kb3 {[%clk 0:00:02.2]}
54. Rg3 {[%clk 0:00:21.8]} 54... Kc2 {[%clk 0:00:02.2]} 55. Rxd3 {[%clk
0:00:21.5]} 55... Kxd3 {[%clk 0:00:03.1]} 56. h5 {[%clk 0:00:22.2]} 56... Kc2
{[%clk 0:00:04]} 57. h6 {[%clk 0:00:21.7]} 57... Kxb2 {[%clk 0:00:03.7]} 58. h7
{[%clk 0:00:22.4]} 58... Kxa3 {[%clk 0:00:04.5]} 59. h8=Q {[%clk 0:00:23]} 59...
c5 {[%clk 0:00:04.2]} 60. Qa1+ {[%clk 0:00:23.6]} 60... Kb3 {[%clk 0:00:04.6]}
61. Qb1+ {[%clk 0:00:24]} 61... Kc3 {[%clk 0:00:05.1]} 62. Kg2 {[%clk
0:00:24.6]} 62... c4 {[%clk 0:00:05.5]} 63. Kf2 {[%clk 0:00:25.2]} 63... Kd2
{[%clk 0:00:06.2]} 64. Qb2+ {[%clk 0:00:24.7]} 64... Kd3 {[%clk 0:00:06.2]} 65.
Ke1 {[%clk 0:00:23.9]} 65... c3 {[%clk 0:00:06.7]} 66. Qe2+ {[%clk 0:00:24.5]}
66... Kd4 {[%clk 0:00:07]} 67. Kd1 {[%clk 0:00:25.4]} 67... b5 {[%clk
0:00:07.3]} 68. Kc2 {[%clk 0:00:26]} 68... b4 {[%clk 0:00:08.2]} 69. Qd3+ {[%clk
0:00:26.1]} 69... Kc5 {[%clk 0:00:09]} 70. Kb3 {[%clk 0:00:26.8]} 70... Kb6
{[%clk 0:00:07.7]} 71. Qd6+ {[%clk 0:00:26.3]} 71... Kb5 {[%clk 0:00:07.4]} 72.
Qxb4+ {[%clk 0:00:26.7]} 1-0

[Event "Early-Titled-Tuesday-Blitz-October-10-2023"]
[Site "Chess.com"]
[Date "2023.10.10"]
[Round "9"]
[White "NicolaiMaxime"]
[Black "Tonychess32"]
[Result "1-0"]
[WhiteElo "2595"]
[BlackElo "2495"]
[TimeControl "180+1"]
[EndTime "9:45:07 PDT"]
[Termination "NicolaiMaxime won by resignation"]

1. e4 {[%clk 0:03:00.7]} 1... e6 {[%clk 0:02:59.5]} 2. b3 {[%clk 0:03:00.6]}
2... d5 {[%clk 0:02:59.7]} 3. Bb2 {[%clk 0:03:00.4]} 3... dxe4 {[%clk
0:02:59.9]} 4. Nc3 {[%clk 0:03:00.8]} 4... Nf6 {[%clk 0:03:00.1]} 5. Qe2 {[%clk
0:02:58.8]} 5... Be7 {[%clk 0:03:00.2]} 6. O-O-O {[%clk 0:02:56.2]} 6... O-O
{[%clk 0:03:00.4]} 7. g4 {[%clk 0:02:56.1]} 7... b6 {[%clk 0:02:59.5]} 8. g5
{[%clk 0:02:55.8]} 8... Nd5 {[%clk 0:02:58.7]} 9. Nxe4 {[%clk 0:02:54.9]} 9...
Bb7 {[%clk 0:02:58.3]} 10. Bg2 {[%clk 0:02:52.6]} 10... Nf4 {[%clk 0:02:47.5]}
11. Qg4 {[%clk 0:02:47.4]} 11... Nxg2 {[%clk 0:02:45.5]} 12. Qxg2 {[%clk
0:02:48.3]} 12... Bxe4 {[%clk 0:02:31.3]} 13. Qxe4 {[%clk 0:02:47.8]} 13... Nd7
{[%clk 0:02:31.5]} 14. h4 {[%clk 0:02:45.7]} 14... Nc5 {[%clk 0:02:14]} 15. Qe5
{[%clk 0:02:45]} 15... f6 {[%clk 0:02:13.8]} 16. gxf6 {[%clk 0:02:24.4]} 16...
Bxf6 {[%clk 0:02:11.2]} 17. Qe3 {[%clk 0:02:25]} 17... Bxb2+ {[%clk 0:02:10.2]}
18. Kxb2 {[%clk 0:02:25.9]} 18... Qd5 {[%clk 0:02:03.9]} 19. Nh3 {[%clk
0:02:22.8]} 19... Rf3 {[%clk 0:01:52]} 20. Nf4 {[%clk 0:02:06.9]} 20... Rxe3
{[%clk 0:01:13.7]} 21. Nxd5 {[%clk 0:02:06.8]} 21... Re2 {[%clk 0:01:14]} 22.
Nxc7 {[%clk 0:02:06.1]} 22... Rd8 {[%clk 0:01:12.3]} 23. d4 {[%clk 0:01:48.6]}
23... Rc8 {[%clk 0:00:38.8]} 24. dxc5 {[%clk 0:01:13.9]} 24... Rxc7 {[%clk
0:00:38.4]} 25. Rhe1 {[%clk 0:01:14.5]} 25... Rxe1 {[%clk 0:00:35.4]} 26. Rxe1
{[%clk 0:01:15.4]} 26... Rxc5 {[%clk 0:00:33.7]} 27. Rxe6 {[%clk 0:01:15.5]}
27... Kf7 {[%clk 0:00:33.2]} 28. Rd6 {[%clk 0:01:09.9]} 28... Ke7 {[%clk
0:00:31.8]} 29. Rd4 {[%clk 0:01:00.2]} 29... Rf5 {[%clk 0:00:31.6]} 30. Rg4
{[%clk 0:00:43.4]} 30... Kf6 {[%clk 0:00:29.6]} 31. Rg2 {[%clk 0:00:43.6]} 31...
Rf4 {[%clk 0:00:28.9]} 32. Rh2 {[%clk 0:00:43.8]} 32... h5 {[%clk 0:00:28]} 33.
a3 {[%clk 0:00:43.3]} 33... Kf5 {[%clk 0:00:20.1]} 34. b4 {[%clk 0:00:43.3]}
34... b5 {[%clk 0:00:19.6]} 35. Kb3 {[%clk 0:00:42.9]} 35... a6 {[%clk 0:00:20]}
36. Rg2 {[%clk 0:00:37]} 36... Rg4 {[%clk 0:00:17.3]} 37. Rh2 {[%clk 0:00:34.3]}
37... Rf4 {[%clk 0:00:09.5]} 38. a4 {[%clk 0:00:34.5]} 38... Rf3+ {[%clk
0:00:08.9]} 39. Kb2 {[%clk 0:00:28.7]} 39... g6 {[%clk 0:00:08.3]} 40. axb5
{[%clk 0:00:27.3]} 40... axb5 {[%clk 0:00:08.1]} 41. Rg2 {[%clk 0:00:28]} 41...
Rf4 {[%clk 0:00:08.2]} 42. Rg5+ {[%clk 0:00:24]} 42... Kf6 {[%clk 0:00:08.7]}
43. Rxb5 {[%clk 0:00:24.7]} 43... Rxh4 {[%clk 0:00:09.2]} 44. Kb3 {[%clk
0:00:23.5]} 44... Rf4 {[%clk 0:00:09.1]} 45. Rb8 {[%clk 0:00:23]} 45... Kg7
{[%clk 0:00:08.8]} 46. b5 {[%clk 0:00:22.6]} 46... h4 {[%clk 0:00:09.3]} 47. Ra8
{[%clk 0:00:19.8]} 47... h3 {[%clk 0:00:07.7]} 48. Ra1 {[%clk 0:00:19.9]} 48...
Rxf2 {[%clk 0:00:07.7]} 49. Rh1 {[%clk 0:00:19.4]} 49... Rf3+ {[%clk 0:00:05.9]}
50. Kb4 {[%clk 0:00:19]} 50... g5 {[%clk 0:00:06.6]} 51. b6 {[%clk 0:00:18.1]}
51... g4 {[%clk 0:00:07.1]} 52. b7 {[%clk 0:00:15.3]} 52... Rf8 {[%clk
0:00:06.8]} 53. Kb5 {[%clk 0:00:11.9]} 53... Kg6 {[%clk 0:00:03.6]} 54. c4
{[%clk 0:00:10.9]} 54... Kg5 {[%clk 0:00:04]} 55. c5 {[%clk 0:00:11.3]} 55...
Kh4 {[%clk 0:00:04.4]} 56. c6 {[%clk 0:00:11.7]} 56... g3 {[%clk 0:00:05.1]} 57.
c7 {[%clk 0:00:12]} 57... g2 {[%clk 0:00:05.6]} 58. Rc1 {[%clk 0:00:11.2]} 58...
Rf1 {[%clk 0:00:04.1]} 59. c8=Q {[%clk 0:00:08.6]} 59... Rxc1 {[%clk 0:00:03.7]}
60. Qxc1 {[%clk 0:00:09.5]} 60... h2 {[%clk 0:00:03.4]} 61. Qf4+ {[%clk
0:00:09.6]} 61... Kh3 {[%clk 0:00:03.4]} 62. Qf3+ {[%clk 0:00:10.2]} 1-0